[Event "Titled Tuesday Blitz August 08 Early 2023"]
[White "Tatarinov, Dmitry"]
[Black "Ibarra Jerez, Jose Carlos"]
[WhiteFideId "24160067"]
[BlackFideId "2226332"]
[WhiteElo "2589"]
[BlackElo "2836"]
[Result "0-1"]
[Round "3"]
[TimeControl "180+1"]
[Date "2023.08.08"]
[WhiteClock "0:01:05"]
[BlackClock "0:00:57"]
[Board "64"]

1. c4 {[%clk 0:03:00]}  e5 {[%clk 0:02:59]} 2. Nc3 {[%clk 0:03:00]}  Nf6 {[%clk 0:03:00]} 3. Nf3 {[%clk 0:03:00]}  e4 {[%clk 0:03:00]} 4. Ng5 {[%clk 0:03:00]}  c6 {[%clk 0:03:01]} 5. Ngxe4 {[%clk 0:02:55]}  Nxe4 {[%clk 0:03:02]} 6. Nxe4 {[%clk 0:02:55]}  d5 {[%clk 0:03:02]} 7. cxd5 {[%clk 0:02:55]}  cxd5 {[%clk 0:03:03]} 8. Nc3 {[%clk 0:02:54]}  d4 {[%clk 0:03:02]} 9. Nb1 {[%clk 0:02:53]}  Nc6 {[%clk 0:03:02]} 10. d3 {[%clk 0:02:54]}  Bf5 {[%clk 0:02:50]} 11. e4 {[%clk 0:02:52]}  dxe3 {[%clk 0:02:49]} 12. Bxe3 {[%clk 0:02:53]}  Qd7 {[%clk 0:02:37]} 13. Nc3 {[%clk 0:02:52]}  Nb4 {[%clk 0:02:34]} 14. Ne4 {[%clk 0:02:28]}  Rd8 {[%clk 0:02:17]} 15. Nc5 {[%clk 0:02:21]}  Bxc5 {[%clk 0:01:44]} 16. Bxc5 {[%clk 0:02:20]}  Qe6+ {[%clk 0:01:37]} 17. Be3 {[%clk 0:02:17]}  O-O {[%clk 0:01:28]} 18. a3 {[%clk 0:01:50]}  Nxd3+ {[%clk 0:01:24]} 19. Bxd3 {[%clk 0:01:49]}  Bxd3 {[%clk 0:01:25]} 20. Rc1 {[%clk 0:01:42]}  Rfe8 {[%clk 0:01:21]} 21. Qf3 {[%clk 0:01:37]}  Qb3 {[%clk 0:01:17]} 22. Rc7 {[%clk 0:01:24]}  Qxb2 {[%clk 0:00:58]} 23. Qxf7+ {[%clk 0:01:05]}  Kh8 {[%clk 0:00:57]} 0-1


[Site "https://www.chess.com"]

[Event "Titled Tuesday Blitz August 08 Early 2023"]
[White "Aradhya, Garg"]
[Black "Shukhman, Anna"]
[WhiteFideId "25006746"]
[BlackFideId "54180058"]
[WhiteElo "2762"]
[BlackElo "2531"]
[Result "1-0"]
[Round "3"]
[TimeControl "180+1"]
[Date "2023.08.08"]
[WhiteClock "0:01:18"]
[BlackClock "0:00:11"]
[Board "68"]

1. d4 {[%clk 0:03:00]}  Nf6 {[%clk 0:02:59]} 2. Nf3 {[%clk 0:03:01]}  g6 {[%clk 0:03:00]} 3. g3 {[%clk 0:03:00]}  Bg7 {[%clk 0:03:00]} 4. Bg2 {[%clk 0:03:00]}  O-O {[%clk 0:03:00]} 5. O-O {[%clk 0:03:01]}  d6 {[%clk 0:03:01]} 6. Nc3 {[%clk 0:03:01]}  c5 {[%clk 0:02:55]} 7. d5 {[%clk 0:02:59]}  a6 {[%clk 0:02:53]} 8. a4 {[%clk 0:02:58]}  Bg4 {[%clk 0:02:51]} 9. Re1 {[%clk 0:02:55]}  Nbd7 {[%clk 0:02:50]} 10. h3 {[%clk 0:02:50]}  Bxf3 {[%clk 0:02:48]} 11. exf3 {[%clk 0:02:51]}  Rb8 {[%clk 0:02:38]} 12. a5 {[%clk 0:02:50]}  Re8 {[%clk 0:02:37]} 13. h4 {[%clk 0:02:43]}  b5 {[%clk 0:02:36]} 14. axb6 {[%clk 0:02:43]}  Qxb6 {[%clk 0:02:34]} 15. f4 {[%clk 0:02:34]}  c4 {[%clk 0:02:22]} 16. Bf1 {[%clk 0:02:27]}  Rbc8 {[%clk 0:02:03]} 17. Ra4 {[%clk 0:02:10]}  h5 {[%clk 0:01:59]} 18. Rxc4 {[%clk 0:02:04]}  Ng4 {[%clk 0:01:57]} 19. Qf3 {[%clk 0:01:56]}  Rxc4 {[%clk 0:01:28]} 20. Bxc4 {[%clk 0:01:54]}  Bxc3 {[%clk 0:01:27]} 21. bxc3 {[%clk 0:01:51]}  Rc8 {[%clk 0:01:27]} 22. Bd3 {[%clk 0:01:47]}  Rxc3 {[%clk 0:01:25]} 23. Rxe7 {[%clk 0:01:47]}  Nc5 {[%clk 0:01:15]} 24. Be3 {[%clk 0:01:34]}  Qb1+ {[%clk 0:01:10]} 25. Kg2 {[%clk 0:01:29]}  Nxd3 {[%clk 0:00:53]} 26. Re8+ {[%clk 0:01:25]}  Kh7 {[%clk 0:00:37]} 27. Bd4 {[%clk 0:01:25]}  Nge5 {[%clk 0:00:22]} 28. Rxe5 {[%clk 0:01:19]}  Ne1+ {[%clk 0:00:11]} 29. Rxe1 {[%clk 0:01:18]} 1-0


[Site "https://www.chess.com"]

[Event "Titled Tuesday Blitz August 08 Early 2023"]
[White "Kim, Yoon-Young"]
[Black "ArtemDyachuk"]
[WhiteFideId "30908779"]
[WhiteElo "2732"]
[BlackElo "2527"]
[Result "1-0"]
[Round "3"]
[TimeControl "180+1"]
[Date "2023.08.08"]
[WhiteClock "0:00:05"]
[BlackClock "0:00:02"]
[Board "70"]

1. d4 {[%clk 0:03:00]}  Nf6 {[%clk 0:02:59]} 2. c4 {[%clk 0:03:00]}  e6 {[%clk 0:02:59]} 3. g3 {[%clk 0:03:00]}  c5 {[%clk 0:02:59]} 4. Bg2 {[%clk 0:03:01]}  cxd4 {[%clk 0:02:59]} 5. Nf3 {[%clk 0:03:02]}  Nc6 {[%clk 0:02:55]} 6. Nxd4 {[%clk 0:03:02]}  Bc5 {[%clk 0:02:55]} 7. Nb3 {[%clk 0:03:02]}  Bb6 {[%clk 0:02:54]} 8. Nc3 {[%clk 0:03:02]}  O-O {[%clk 0:02:53]} 9. O-O {[%clk 0:03:02]}  a6 {[%clk 0:02:51]} 10. Bg5 {[%clk 0:02:54]}  h6 {[%clk 0:02:49]} 11. Bf4 {[%clk 0:02:43]}  Bc7 {[%clk 0:02:45]} 12. Bd6 {[%clk 0:02:31]}  Re8 {[%clk 0:02:41]} 13. c5 {[%clk 0:02:25]}  Ne7 {[%clk 0:02:21]} 14. Na4 {[%clk 0:02:11]}  Nfd5 {[%clk 0:02:07]} 15. e4 {[%clk 0:02:08]}  Nb4 {[%clk 0:02:06]} 16. Qd2 {[%clk 0:01:53]}  Nbc6 {[%clk 0:02:05]} 17. f4 {[%clk 0:01:53]}  Kh8 {[%clk 0:01:28]} 18. Bxc7 {[%clk 0:01:39]}  Qxc7 {[%clk 0:01:28]} 19. Nb6 {[%clk 0:01:40]}  Rb8 {[%clk 0:01:25]} 20. e5 {[%clk 0:01:40]}  Nf5 {[%clk 0:01:17]} 21. Rad1 {[%clk 0:01:35]}  Nce7 {[%clk 0:01:14]} 22. Qf2 {[%clk 0:01:29]}  Ng6 {[%clk 0:01:10]} 23. Be4 {[%clk 0:01:22]}  Nfe7 {[%clk 0:01:10]} 24. g4 {[%clk 0:01:18]}  f5 {[%clk 0:01:03]} 25. gxf5 {[%clk 0:01:13]}  Nxf5 {[%clk 0:00:56]} 26. Bxf5 {[%clk 0:01:13]}  exf5 {[%clk 0:00:57]} 27. Rd6 {[%clk 0:01:13]}  Nf8 {[%clk 0:00:55]} 28. Rfd1 {[%clk 0:01:00]}  Ne6 {[%clk 0:00:55]} 29. h4 {[%clk 0:00:48]}  Rg8 {[%clk 0:00:48]} 30. Kh2 {[%clk 0:00:47]}  Re8 {[%clk 0:00:39]} 31. a4 {[%clk 0:00:40]}  Qd8 {[%clk 0:00:38]} 32. a5 {[%clk 0:00:40]}  Qe7 {[%clk 0:00:38]} 33. Nd2 {[%clk 0:00:40]}  Nxc5 {[%clk 0:00:29]} 34. Qxc5 {[%clk 0:00:32]}  Qxh4+ {[%clk 0:00:27]} 35. Kg2 {[%clk 0:00:33]}  Qg4+ {[%clk 0:00:26]} 36. Kf2 {[%clk 0:00:33]}  Qxd1 {[%clk 0:00:26]} 37. Qc7 {[%clk 0:00:27]}  Qg4 {[%clk 0:00:19]} 38. Qxb8 {[%clk 0:00:22]}  Qxf4+ {[%clk 0:00:17]} 39. Nf3 {[%clk 0:00:23]}  Qb4 {[%clk 0:00:15]} 40. Qc7 {[%clk 0:00:16]}  Qxb2+ {[%clk 0:00:15]} 41. Rd2 {[%clk 0:00:17]}  Qb3 {[%clk 0:00:09]} 42. Nxc8 {[%clk 0:00:16]}  f4 {[%clk 0:00:09]} 43. Qc5 {[%clk 0:00:12]}  Re6 {[%clk 0:00:05]} 44. Qf8+ {[%clk 0:00:08]}  Kh7 {[%clk 0:00:05]} 45. Qf5+ {[%clk 0:00:08]}  Kh8 {[%clk 0:00:05]} 46. Qf8+ {[%clk 0:00:08]}  Kh7 {[%clk 0:00:05]} 47. Qf5+ {[%clk 0:00:08]}  Kh8 {[%clk 0:00:06]} 48. Qd3 {[%clk 0:00:09]}  Qb4 {[%clk 0:00:04]} 49. Qd4 {[%clk 0:00:08]}  Qb3 {[%clk 0:00:04]} 50. Qxf4 {[%clk 0:00:08]}  Qc3 {[%clk 0:00:02]} 51. Nd6 {[%clk 0:00:08]}  Qc5+ {[%clk 0:00:01]} 52. Qe3 {[%clk 0:00:07]}  Qxa5 {[%clk 0:00:02]} 53. Qf4 {[%clk 0:00:07]}  Qc5+ {[%clk 0:00:02]} 54. Qd4 {[%clk 0:00:05]}  Qc6 {[%clk 0:00:02]} 55. Ne4 {[%clk 0:00:05]}  b5 {[%clk 0:00:02]} 56. Qd5 {[%clk 0:00:05]}  Qb6+ {[%clk 0:00:03]} 57. Qc5 {[%clk 0:00:05]}  Qb7 {[%clk 0:00:02]} 58. Qf8+ {[%clk 0:00:05]}  Kh7 {[%clk 0:00:02]} 59. Qf5+ {[%clk 0:00:06]}  Kh8 {[%clk 0:00:02]} 60. Nd6 {[%clk 0:00:06]}  Qb8 {[%clk 0:00:02]} 61. Nf7+ {[%clk 0:00:05]}  Kg8 {[%clk 0:00:02]} 62. Rxd7 {[%clk 0:00:05]}  Re8 {[%clk 0:00:01]} 63. Nxh6+ {[%clk 0:00:05]}  Kh8 {[%clk 0:00:01]} 64. Nf7+ {[%clk 0:00:04]}  Kg8 {[%clk 0:00:02]} 65. Nd6 {[%clk 0:00:05]}  Qb6+ {[%clk 0:00:01]} 66. Kg3 {[%clk 0:00:05]}  Rf8 {[%clk 0:00:01]} 67. Qe6+ {[%clk 0:00:05]}  Kh7 {[%clk 0:00:02]} 68. Ng5+ {[%clk 0:00:04]}  Kh8 {[%clk 0:00:01]} 69. Ndf7+ {[%clk 0:00:04]}  Rxf7 {[%clk 0:00:02]} 70. Qxf7 {[%clk 0:00:04]}  Qe3+ {[%clk 0:00:01]} 71. Nf3 {[%clk 0:00:04]}  Qh6 {[%clk 0:00:01]} 72. Qf8+ {[%clk 0:00:03]}  Kh7 {[%clk 0:00:02]} 73. Qf7 {[%clk 0:00:04]}  Kh8 {[%clk 0:00:02]} 74. e6 {[%clk 0:00:04]}  Qh7 {[%clk 0:00:01]} 75. e7 {[%clk 0:00:04]}  Qg8 {[%clk 0:00:01]} 76. e8=Q {[%clk 0:00:04]}  Qxe8 {[%clk 0:00:02]} 77. Qxg7# {[%clk 0:00:05]} 1-0


[Site "https://www.chess.com"]

[Event "Titled Tuesday Blitz August 08 Early 2023"]
[White "FREDERICKtheMATE"]
[Black "Godzwon, Iwo"]
[BlackFideId "21802483"]
[WhiteElo "2445"]
[BlackElo "2682"]
[Result "1/2-1/2"]
[Round "3"]
[TimeControl "180+1"]
[Date "2023.08.08"]
[WhiteClock "0:00:10"]
[BlackClock "0:00:17"]
[Board "74"]

1. Nf3 {[%clk 0:03:00]}  d5 {[%clk 0:02:55]} 2. d4 {[%clk 0:03:01]}  c6 {[%clk 0:02:52]} 3. g3 {[%clk 0:03:01]}  Bf5 {[%clk 0:02:48]} 4. Bg2 {[%clk 0:03:01]}  e6 {[%clk 0:02:49]} 5. O-O {[%clk 0:03:01]}  h6 {[%clk 0:02:49]} 6. b3 {[%clk 0:03:01]}  Nf6 {[%clk 0:02:49]} 7. Bb2 {[%clk 0:03:02]}  Be7 {[%clk 0:02:49]} 8. Nbd2 {[%clk 0:03:02]}  O-O {[%clk 0:02:49]} 9. c4 {[%clk 0:03:03]}  Nbd7 {[%clk 0:02:50]} 10. Re1 {[%clk 0:03:03]}  Bh7 {[%clk 0:02:49]} 11. Ne5 {[%clk 0:03:02]}  Re8 {[%clk 0:02:33]} 12. e4 {[%clk 0:02:58]}  Bb4 {[%clk 0:02:33]} 13. exd5 {[%clk 0:02:42]}  cxd5 {[%clk 0:02:33]} 14. a3 {[%clk 0:02:29]}  Bxd2 {[%clk 0:02:33]} 15. Qxd2 {[%clk 0:02:30]}  Qb6 {[%clk 0:02:32]} 16. Nxd7 {[%clk 0:02:23]}  Nxd7 {[%clk 0:02:33]} 17. cxd5 {[%clk 0:02:21]}  Qxb3 {[%clk 0:02:33]} 18. dxe6 {[%clk 0:02:21]}  Rxe6 {[%clk 0:02:22]} 19. d5 {[%clk 0:02:18]}  Ree8 {[%clk 0:02:16]} 20. d6 {[%clk 0:02:11]}  Qd3 {[%clk 0:02:12]} 21. Qxd3 {[%clk 0:02:07]}  Bxd3 {[%clk 0:02:13]} 22. Re7 {[%clk 0:01:56]}  Rxe7 {[%clk 0:02:06]} 23. dxe7 {[%clk 0:01:57]}  Re8 {[%clk 0:02:06]} 24. Re1 {[%clk 0:01:55]}  Nc5 {[%clk 0:02:06]} 25. Bc3 {[%clk 0:01:44]}  Bb5 {[%clk 0:01:40]} 26. Re5 {[%clk 0:01:28]}  b6 {[%clk 0:01:37]} 27. Bb4 {[%clk 0:01:27]}  Bd7 {[%clk 0:01:32]} 28. Bd5 {[%clk 0:00:55]}  Nd3 {[%clk 0:01:16]} 29. Re3 {[%clk 0:00:54]}  Nxb4 {[%clk 0:01:17]} 30. axb4 {[%clk 0:00:55]}  g6 {[%clk 0:01:17]} 31. Kf1 {[%clk 0:00:44]}  Kg7 {[%clk 0:01:16]} 32. h4 {[%clk 0:00:42]}  f5 {[%clk 0:01:05]} 33. Kg2 {[%clk 0:00:28]}  a5 {[%clk 0:00:50]} 34. bxa5 {[%clk 0:00:20]}  bxa5 {[%clk 0:00:51]} 35. Rc3 {[%clk 0:00:16]}  Rxe7 {[%clk 0:00:51]} 36. Rc7 {[%clk 0:00:16]}  Kf6 {[%clk 0:00:51]} 37. Ra7 {[%clk 0:00:16]}  a4 {[%clk 0:00:51]} 38. Ra6+ {[%clk 0:00:16]}  Kg7 {[%clk 0:00:49]} 39. Ra7 {[%clk 0:00:15]}  f4 {[%clk 0:00:47]} 40. Kh2 {[%clk 0:00:14]}  fxg3+ {[%clk 0:00:47]} 41. Kxg3 {[%clk 0:00:15]}  Kf6 {[%clk 0:00:46]} 42. Ra6+ {[%clk 0:00:15]}  Ke5 {[%clk 0:00:46]} 43. Ba2 {[%clk 0:00:14]}  Rg7 {[%clk 0:00:34]} 44. f4+ {[%clk 0:00:14]}  Kd4 {[%clk 0:00:31]} 45. Bb1 {[%clk 0:00:14]}  g5 {[%clk 0:00:30]} 46. hxg5 {[%clk 0:00:14]}  hxg5 {[%clk 0:00:31]} 47. fxg5 {[%clk 0:00:14]}  Rxg5+ {[%clk 0:00:31]} 48. Kf4 {[%clk 0:00:14]}  Rg4+ {[%clk 0:00:30]} 49. Kf3 {[%clk 0:00:14]}  Rg7 {[%clk 0:00:28]} 50. Bc2 {[%clk 0:00:13]}  Bb5 {[%clk 0:00:23]} 51. Ra5 {[%clk 0:00:13]}  Rg5 {[%clk 0:00:21]} 52. Kf4 {[%clk 0:00:11]}  Rc5 {[%clk 0:00:16]} 53. Bxa4 {[%clk 0:00:10]}  Kc4 {[%clk 0:00:16]} 54. Rxb5 {[%clk 0:00:10]}  Rxb5 {[%clk 0:00:17]} 55. Bxb5+ {[%clk 0:00:10]} 1/2-1/2


[Site "https://www.chess.com"]

[Event "Titled Tuesday Blitz August 08 Early 2023"]
[White "Ioannidis, Evgenios"]
[Black "Jumanov, Elbek"]
[WhiteFideId "4229274"]
[BlackFideId "14202905"]
[WhiteElo "2680"]
[BlackElo "2418"]
[Result "1-0"]
[Round "3"]
[TimeControl "180+1"]
[Date "2023.08.08"]
[WhiteClock "0:02:31"]
[BlackClock "0:02:00"]
[Board "75"]

1. d4 {[%clk 0:03:00]}  Nf6 {[%clk 0:02:59]} 2. c4 {[%clk 0:02:58]}  c5 {[%clk 0:03:00]} 3. d5 {[%clk 0:02:58]}  b5 {[%clk 0:03:00]} 4. cxb5 {[%clk 0:02:59]}  a6 {[%clk 0:03:01]} 5. bxa6 {[%clk 0:02:59]}  g6 {[%clk 0:03:01]} 6. Nc3 {[%clk 0:03:00]}  Bg7 {[%clk 0:03:02]} 7. e4 {[%clk 0:02:59]}  O-O {[%clk 0:03:02]} 8. a7 {[%clk 0:03:00]}  Na6 {[%clk 0:02:58]} 9. Nf3 {[%clk 0:02:59]}  d6 {[%clk 0:02:58]} 10. Be2 {[%clk 0:02:54]}  Rxa7 {[%clk 0:02:52]} 11. O-O {[%clk 0:02:54]}  Nb4 {[%clk 0:02:49]} 12. a3 {[%clk 0:02:52]}  Ba6 {[%clk 0:02:39]} 13. Bg5 {[%clk 0:02:48]}  Bxe2 {[%clk 0:02:38]} 14. Qxe2 {[%clk 0:02:49]}  Na6 {[%clk 0:02:37]} 15. e5 {[%clk 0:02:48]}  Ng4 {[%clk 0:02:34]} 16. exd6 {[%clk 0:02:43]}  f6 {[%clk 0:02:21]} 17. Nb5 {[%clk 0:02:35]}  Rd7 {[%clk 0:02:14]} 18. Bf4 {[%clk 0:02:31]}  exd6 {[%clk 0:02:10]} 19. Qe6+ {[%clk 0:02:31]}  Kh8 {[%clk 0:02:10]} 20. Qxg4 {[%clk 0:02:31]}  f5 {[%clk 0:02:05]} 21. Qg3 {[%clk 0:02:31]}  Bxb2 {[%clk 0:02:00]} 22. Rab1 {[%clk 0:02:31]} 1-0


[Site "https://www.chess.com"]

[Event "Titled Tuesday Blitz August 08 Early 2023"]
[White "Zeynalli, Rashad"]
[Black "Nathan, Nitish"]
[WhiteFideId "13403320"]
[BlackFideId "30927870"]
[WhiteElo "2671"]
[BlackElo "2382"]
[Result "0-1"]
[Round "3"]
[TimeControl "180+1"]
[Date "2023.08.08"]
[WhiteClock "0:00:00"]
[BlackClock "0:00:08"]
[Board "77"]

1. e4 {[%clk 0:02:54]}  c5 {[%clk 0:02:59]} 2. Nf3 {[%clk 0:02:53]}  Nc6 {[%clk 0:03:00]} 3. Bb5 {[%clk 0:02:52]}  e6 {[%clk 0:02:59]} 4. O-O {[%clk 0:02:51]}  Nge7 {[%clk 0:02:59]} 5. d4 {[%clk 0:02:51]}  cxd4 {[%clk 0:02:59]} 6. Nxd4 {[%clk 0:02:52]}  Qb6 {[%clk 0:02:59]} 7. Nxc6 {[%clk 0:02:47]}  bxc6 {[%clk 0:02:59]} 8. Bd3 {[%clk 0:02:44]}  Ng6 {[%clk 0:02:58]} 9. Kh1 {[%clk 0:02:37]}  Be7 {[%clk 0:02:53]} 10. f4 {[%clk 0:02:34]}  O-O {[%clk 0:02:52]} 11. Nd2 {[%clk 0:02:28]}  d5 {[%clk 0:02:50]} 12. Qh5 {[%clk 0:02:26]}  f5 {[%clk 0:02:30]} 13. exf5 {[%clk 0:02:23]}  exf5 {[%clk 0:02:31]} 14. Nf3 {[%clk 0:02:22]}  Ba6 {[%clk 0:02:26]} 15. Bxa6 {[%clk 0:01:59]}  Qxa6 {[%clk 0:02:27]} 16. Bd2 {[%clk 0:02:00]}  Bf6 {[%clk 0:02:15]} 17. Qxf5 {[%clk 0:01:52]}  Rae8 {[%clk 0:01:59]} 18. Qd3 {[%clk 0:01:28]}  Qxd3 {[%clk 0:01:57]} 19. cxd3 {[%clk 0:01:29]}  Bxb2 {[%clk 0:01:57]} 20. Rab1 {[%clk 0:01:29]}  Ba3 {[%clk 0:01:55]} 21. Rb7 {[%clk 0:01:23]}  Rf7 {[%clk 0:01:53]} 22. Rfb1 {[%clk 0:01:19]}  Bc5 {[%clk 0:01:46]} 23. Rxf7 {[%clk 0:01:18]}  Kxf7 {[%clk 0:01:44]} 24. Rc1 {[%clk 0:01:18]}  Bd6 {[%clk 0:01:41]} 25. Rxc6 {[%clk 0:00:50]}  Bxf4 {[%clk 0:01:40]} 26. Rxg6 {[%clk 0:00:42]}  Bxd2 {[%clk 0:01:31]} 27. Rd6 {[%clk 0:00:42]}  Rc8 {[%clk 0:01:14]} 28. g3 {[%clk 0:00:20]}  Rc1+ {[%clk 0:01:13]} 29. Kg2 {[%clk 0:00:19]}  Rc2 {[%clk 0:01:14]} 30. Kh3 {[%clk 0:00:15]}  Rxa2 {[%clk 0:01:12]} 31. Rxd5 {[%clk 0:00:15]}  a5 {[%clk 0:01:12]} 32. Kg4 {[%clk 0:00:14]}  Ra4+ {[%clk 0:01:00]} 33. Kf5 {[%clk 0:00:12]}  g6+ {[%clk 0:01:00]} 34. Ke5 {[%clk 0:00:13]}  Bc3+ {[%clk 0:01:00]} 35. d4 {[%clk 0:00:13]}  Ra1 {[%clk 0:00:46]} 36. Ng5+ {[%clk 0:00:12]}  Kg7 {[%clk 0:00:45]} 37. Rd7+ {[%clk 0:00:12]}  Kg8 {[%clk 0:00:45]} 38. Nxh7 {[%clk 0:00:10]}  Re1+ {[%clk 0:00:44]} 39. Kf4 {[%clk 0:00:08]}  Bxd4 {[%clk 0:00:42]} 40. Kg5 {[%clk 0:00:05]}  Re6 {[%clk 0:00:33]} 41. Rxd4 {[%clk 0:00:02]}  Kxh7 {[%clk 0:00:31]} 42. Rd7+ {[%clk 0:00:03]}  Kg8 {[%clk 0:00:30]} 43. Ra7 {[%clk 0:00:04]}  Re5+ {[%clk 0:00:14]} 44. Kxg6 {[%clk 0:00:03]}  Re6+ {[%clk 0:00:14]} 45. Kf5 {[%clk 0:00:03]}  Rh6 {[%clk 0:00:14]} 46. h4 {[%clk 0:00:02]}  Rh7 {[%clk 0:00:09]} 47. Ra8+ {[%clk 0:00:00]}  Kg7 {[%clk 0:00:08]} 0-1


[Site "https://www.chess.com"]

[Event "Titled Tuesday Blitz August 08 Early 2023"]
[White "Freitag, Manfred"]
[Black "Lopez Del Alamo, Antonio"]
[WhiteFideId "1602004"]
[BlackFideId "2227339"]
[WhiteElo "2662"]
[BlackElo "2352"]
[Result "1/2-1/2"]
[Round "3"]
[TimeControl "180+1"]
[Date "2023.08.08"]
[WhiteClock "0:00:26"]
[BlackClock "0:01:10"]
[Board "78"]

1. e4 {[%clk 0:02:22]}  c5 {[%clk 0:02:57]} 2. Nf3 {[%clk 0:02:21]}  e6 {[%clk 0:02:39]} 3. d4 {[%clk 0:02:21]}  cxd4 {[%clk 0:02:38]} 4. Nxd4 {[%clk 0:02:22]}  Nf6 {[%clk 0:02:38]} 5. Nc3 {[%clk 0:02:22]}  Nc6 {[%clk 0:02:38]} 6. Ndb5 {[%clk 0:02:19]}  d6 {[%clk 0:02:35]} 7. Bf4 {[%clk 0:02:19]}  e5 {[%clk 0:02:36]} 8. Bg5 {[%clk 0:02:19]}  a6 {[%clk 0:02:36]} 9. Na3 {[%clk 0:02:20]}  b5 {[%clk 0:02:37]} 10. Bxf6 {[%clk 0:02:20]}  gxf6 {[%clk 0:02:37]} 11. Nd5 {[%clk 0:02:21]}  Bg7 {[%clk 0:02:37]} 12. Bd3 {[%clk 0:02:20]}  Ne7 {[%clk 0:02:37]} 13. Nxe7 {[%clk 0:02:20]}  Qxe7 {[%clk 0:02:38]} 14. O-O {[%clk 0:02:21]}  O-O {[%clk 0:02:37]} 15. c4 {[%clk 0:02:21]}  f5 {[%clk 0:02:36]} 16. Qf3 {[%clk 0:02:21]}  f4 {[%clk 0:02:03]} 17. cxb5 {[%clk 0:02:01]}  axb5 {[%clk 0:02:00]} 18. Nxb5 {[%clk 0:01:59]}  Bb7 {[%clk 0:02:00]} 19. Nc3 {[%clk 0:01:59]}  f5 {[%clk 0:01:57]} 20. Rfe1 {[%clk 0:01:54]}  Kh8 {[%clk 0:01:49]} 21. Qh5 {[%clk 0:01:53]}  d5 {[%clk 0:01:46]} 22. exd5 {[%clk 0:01:12]}  e4 {[%clk 0:01:43]} 23. Nxe4 {[%clk 0:00:55]}  fxe4 {[%clk 0:01:42]} 24. Rxe4 {[%clk 0:00:56]}  Qf7 {[%clk 0:01:31]} 25. Qh4 {[%clk 0:00:51]}  h6 {[%clk 0:01:24]} 26. Re6 {[%clk 0:00:48]}  Bxd5 {[%clk 0:01:19]} 27. Rxh6+ {[%clk 0:00:44]}  Bxh6 {[%clk 0:01:19]} 28. Qxh6+ {[%clk 0:00:44]}  Kg8 {[%clk 0:01:19]} 29. Qg5+ {[%clk 0:00:44]}  Kh8 {[%clk 0:01:18]} 30. Qh6+ {[%clk 0:00:42]}  Kg8 {[%clk 0:01:18]} 31. Qg5+ {[%clk 0:00:42]}  Kh8 {[%clk 0:01:10]} 32. Qh6+ {[%clk 0:00:26]} 1/2-1/2


[Site "https://www.chess.com"]

[Event "Titled Tuesday Blitz August 08 Early 2023"]
[White "Nagare Kaivalya Sandip"]
[Black "Gauravthegm"]
[WhiteFideId "25957929"]
[WhiteElo "2661"]
[BlackElo "2343"]
[Result "1-0"]
[Round "3"]
[TimeControl "180+1"]
[Date "2023.08.08"]
[WhiteClock "0:02:31"]
[BlackClock "0:00:39"]
[Board "79"]

1. e4 {[%clk 0:03:00]}  c5 {[%clk 0:03:00]} 2. Nf3 {[%clk 0:03:01]}  e6 {[%clk 0:03:00]} 3. d4 {[%clk 0:03:01]}  cxd4 {[%clk 0:03:00]} 4. Nxd4 {[%clk 0:03:02]}  a6 {[%clk 0:03:01]} 5. Bd3 {[%clk 0:03:02]}  Qc7 {[%clk 0:03:00]} 6. O-O {[%clk 0:03:02]}  Nf6 {[%clk 0:03:00]} 7. Qe2 {[%clk 0:03:02]}  d6 {[%clk 0:02:59]} 8. c4 {[%clk 0:03:02]}  Nbd7 {[%clk 0:02:59]} 9. Nc3 {[%clk 0:03:02]}  b6 {[%clk 0:03:00]} 10. f4 {[%clk 0:03:02]}  Bb7 {[%clk 0:02:59]} 11. f5 {[%clk 0:03:02]}  e5 {[%clk 0:02:51]} 12. Nb3 {[%clk 0:03:01]}  h6 {[%clk 0:02:50]} 13. Be3 {[%clk 0:03:01]}  Be7 {[%clk 0:02:48]} 14. a4 {[%clk 0:03:01]}  Nc5 {[%clk 0:02:47]} 15. Nd2 {[%clk 0:02:56]}  Nxd3 {[%clk 0:02:42]} 16. Qxd3 {[%clk 0:02:56]}  Ng4 {[%clk 0:02:43]} 17. Kh1 {[%clk 0:02:50]}  Nxe3 {[%clk 0:02:38]} 18. Qxe3 {[%clk 0:02:51]}  Bg5 {[%clk 0:02:37]} 19. Qd3 {[%clk 0:02:49]}  Bxd2 {[%clk 0:02:26]} 20. Qxd2 {[%clk 0:02:49]}  Qxc4 {[%clk 0:02:17]} 21. Qxd6 {[%clk 0:02:47]}  Qd4 {[%clk 0:02:00]} 22. Qc7 {[%clk 0:02:43]}  Bxe4 {[%clk 0:01:07]} 23. Rad1 {[%clk 0:02:36]}  Qb4 {[%clk 0:00:54]} 24. Qxe5+ {[%clk 0:02:33]}  Kf8 {[%clk 0:00:51]} 25. Qxe4 {[%clk 0:02:33]}  Qxe4 {[%clk 0:00:50]} 26. Nxe4 {[%clk 0:02:34]}  Kg8 {[%clk 0:00:47]} 27. f6 {[%clk 0:02:31]}  Kh7 {[%clk 0:00:43]} 28. fxg7 {[%clk 0:02:31]}  Kxg7 {[%clk 0:00:43]} 29. Rd7 {[%clk 0:02:31]}  Rhf8 {[%clk 0:00:39]} 30. Nd6 {[%clk 0:02:31]} 1-0


[Site "https://www.chess.com"]